fUST/lending_fUST_20250214
["ID","MTS","AMOUNT","RATE_DAILY","PERIOD"]
[352989417,1739476247776,-585.52,0.00014109,2]
[352989420,1739476247786,-500.0,0.00014109,2]
[352989422,1739476247796,-915.79,0.00014109,2]
[352989423,1739476247806,-582.68432635,0.00014109,2]
[352989425,1739476247817,-500.0,0.00014109,2]
[352989428,1739476247827,-800.2,0.00014109,2]
[352989430,1739476247836,-4113.12,0.00014109,2]
[352989431,1739476247845,-802.43,0.00014109,2]
[352989434,1739476247855,-500.0,0.00014109,2]
[352989436,1739476247866,-500.0,0.00014109,2]
[352989438,1739476247877,-673.09,0.00014109,2]
[352989440,1739476247891,-500.0,0.00014109,2]
[352989441,1739476247900,-503.70805446,0.00014109,2]
[352989443,1739476247909,-453.69499552,0.00014109,2]
[352989446,1739476247919,-500.0,0.00014109,2]
[352989447,1739476247930,-500.0,0.00014109,2]
[352989449,1739476247940,-1518.39,0.00014109,2]
[352989451,1739476247949,-1928.05,0.00014109,2]
[352989453,1739476247959,-500.0,0.00014109,2]
[352989455,1739476247970,-1787.65,0.00014109,2]
[352989457,1739476247980,-500.0,0.00014109,2]
[352989459,1739476247989,-500.0,0.00014109,2]
[352989462,1739476248000,-641.97,0.00014109,2]
[352989463,1739476248009,-3031.55,0.00014109,2]
[352989465,1739476248019,-1659.36,0.00014109,2]
[352989467,1739476248029,-500.0,0.00014191,2]
[352989469,1739476248038,-500.0,0.00014191,2]
[352989471,1739476248048,-500.0,0.00014191,2]
[352989473,1739476248058,-500.0,0.00014191,2]
[352989475,1739476248068,-513.62,0.00014191,2]
[352989477,1739476248078,-500.0,0.00014191,2]
[352989479,1739476248087,-500.0,0.00014191,2]
[352989481,1739476248097,-531.63,0.00014191,2]
[352989483,1739476248106,-541.97,0.00014191,2]
[352989485,1739476248117,-206.431367,0.00014191,2]
[352989487,1739476248127,-500.0,0.00014191,2]
[352989489,1739476248137,-574.38,0.00014191,2]
[352989491,1739476248147,-151.0,0.00014191,2]
[352989493,1739476248156,-151.0,0.00014191,2]
[352989495,1739476248165,-669.43,0.00014191,2]
[352989497,1739476248175,-400.81328614,0.00014191,2]
[352989499,1739476248185,-500.0,0.00014191,2]
[352989501,1739476248195,-164.87443108,0.00014191,2]
[352989503,1739476248206,-870.15,0.00014191,2]
[352989505,1739476248216,-869.6,0.00014191,2]
[352989507,1739476248226,-500.0,0.00014191,2]
[352989509,1739476248235,-152.81151108,0.00014191,2]
[352989511,1739476248246,-518.61,0.00014191,2]
[352989513,1739476248256,-500.0,0.00014191,2]
[352989515,1739476248267,-502.50925304,0.00014191,2]
[352989517,1739476248277,-500.0,0.00014191,2]
[352989519,1739476248287,-756.32,0.00014191,2]
[352989521,1739476248297,-948.23,0.00014191,2]
[352989523,1739476248307,-500.0,0.00014191,2]
[352989525,1739476248315,-1600.1,0.00014191,2]
[352989527,1739476248323,-500.0,0.00014191,2]
[352989529,1739476248333,-172.286912,0.00014191,2]
[352989531,1739476248343,-346.0091143,0.00014191,2]
[352989533,1739476248357,-287.4975214,0.00014191,2]
[352989535,1739476248369,-15.8933643,0.00014191,2]
[352989537,1739476248379,-172.286912,0.00014191,2]
[352989539,1739476248390,-899.04,0.00014191,2]
[352989541,1739476248400,-151.0,0.00014191,2]
[352989543,1739476248410,-4037.66138945,0.00014191,2]
[352989545,1739476248422,-2855.45861055,0.00014191,2]
[352989547,1739476248431,-213.432608,0.00014191,2]
[352989549,1739476248442,-151.0,0.00014191,2]
[352989551,1739476248451,-2890.67,0.00014191,2]
[352989553,1739476248462,-500.0,0.00014191,2]
[352989555,1739476248472,-2073.17,0.00014191,2]
[352989557,1739476248482,-572.24,0.00014191,2]
[352989559,1739476248491,-151.0,0.00014191,2]
[352989561,1739476248502,-151.0,0.00014191,2]
[352989563,1739476248513,-552.36,0.00014191,2]
[352989565,1739476248523,-639.73,0.00014191,2]
[352989567,1739476248534,-1239.63,0.00014191,2]
[352989569,1739476248543,-577.54,0.00014191,2]
[352989571,1739476248552,-873.79,0.00014191,2]
[352989573,1739476248562,-830.83,0.00014191,2]
[352989575,1739476248573,-807.61,0.00014191,2]
[352989577,1739476248583,-500.0,0.00014191,2]
[352989579,1739476248593,-151.0,0.00014191,2]
[352989581,1739476248603,-20060.39,0.00014191,2]
[352989583,1739476248612,-151.0,0.00014191,2]
[352989585,1739476248622,-500.0,0.00014191,2]
[352989587,1739476248632,-769.31,0.00014191,2]
[352989589,1739476248642,-9930.67,0.00014191,2]
[352989591,1739476248652,-151.0,0.00014191,2]
[352989593,1739476248662,-503.74,0.00014191,2]
[352989595,1739476248672,-1102.91,0.00014191,2]
[352989597,1739476248682,-500.0,0.00014191,2]
[352989599,1739476248692,-1206.97,0.00014191,2]
[352989601,1739476248703,-151.0,0.00014191,2]
[352989603,1739476248712,-500.0,0.00014191,2]
[352989605,1739476248722,-696.9,0.00014191,2]
[352989607,1739476248731,-500.0,0.00014191,2]
[352989609,1739476248742,-950.98,0.00014191,2]
[352989611,1739476248752,-587.48,0.00014191,2]
[352989613,1739476248761,-500.0,0.00014191,2]
[352989614,1739476248771,-500.0,0.00014191,2]
[352989616,1739476248783,-1568.22,0.00014191,2]
[352989618,1739476248794,-500.0,0.00014191,2]
[352989620,1739476248805,-500.0,0.00014191,2]
[352989622,1739476248815,-500.0,0.00014191,2]
[352989624,1739476248825,-1924.85,0.00014191,2]
[352989626,1739476248835,-585.52,0.00014191,2]
[352989628,1739476248846,-915.79,0.00014191,2]
[352989630,1739476248858,-500.0,0.00014191,2]
[352989632,1739476248869,-151.0,0.00014191,2]
[352989634,1739476248880,-500.0,0.00014191,2]
[352989637,1739476248895,-800.2,0.00014191,2]
[352989639,1739476248906,-4113.12,0.00014191,2]
[352989641,1739476248916,-151.0,0.00014191,2]
[352989643,1739476248927,-802.43,0.00014191,2]
[352989645,1739476248937,-500.0,0.00014191,2]
[352989647,1739476248949,-500.0,0.00014191,2]
[352989648,1739476248959,-673.09,0.00014191,2]
[352989650,1739476248970,-500.0,0.00014191,2]
[352989652,1739476248980,-500.0,0.00014191,2]
[352989654,1739476248990,-500.0,0.00014191,2]
[352989656,1739476249001,-1518.39,0.00014191,2]
[352989658,1739476249011,-263.427288,0.00014191,2]
[352989660,1739476249022,-1928.05,0.00014191,2]
[352989662,1739476249033,-263.427288,0.00014191,2]
[352989664,1739476249043,-500.0,0.00014191,2]
[352989666,1739476249053,-151.0,0.00014191,2]
[352989668,1739476249063,-1787.65,0.00014191,2]
[352989670,1739476249073,-500.0,0.00014191,2]
[352989685,1739476249215,-151.0,0.00014191,2]
[352989688,1739476249225,-500.0,0.00014191,2]
[352989689,1739476249233,-641.97,0.00014191,2]
[352989691,1739476249241,-3031.55,0.00014191,2]
[352989693,1739476249250,-1659.36,0.00014191,2]
[352989695,1739476249261,-308.78674567,0.00014199,2]
[352989697,1739476249272,-165.8553,0.0001421,5]
[352989699,1739476249282,-168.991922,0.0001421,5]
[352989701,1739476249292,-500.0,0.00014273,2]
[352989703,1739476249303,-500.0,0.00014273,2]
[352989705,1739476249313,-500.0,0.00014273,2]
[352989707,1739476249323,-500.0,0.00014273,2]
[352989710,1739476249334,-513.62,0.00014273,2]
[352989711,1739476249345,-500.0,0.00014273,2]
[352989714,1739476249356,-500.0,0.00014273,2]
[352989716,1739476249367,-151.0,0.00014273,2]
[352989717,1739476249376,-151.0,0.00014273,2]
[352989719,1739476249387,-531.63,0.00014273,2]
[352989721,1739476249397,-541.97,0.00014273,2]
[352989723,1739476249408,-500.0,0.00014273,2]
[352989725,1739476249419,-574.38,0.00014273,2]
[352989728,1739476249432,-669.43,0.00014273,2]
[352989730,1739476249443,-500.0,0.00014273,2]
[352989732,1739476249454,-870.15,0.00014273,2]
[352989734,1739476249466,-869.6,0.00014273,2]
[352989736,1739476249478,-500.0,0.00014273,2]
[352989738,1739476249490,-518.61,0.00014273,2]
[352989740,1739476249500,-500.0,0.00014273,2]
[352989742,1739476249513,-500.0,0.00014273,2]
[352989744,1739476249523,-756.32,0.00014273,2]
[352989746,1739476249534,-948.23,0.00014273,2]
[352989748,1739476249545,-500.0,0.00014273,2]
[352989750,1739476249558,-1600.1,0.00014273,2]
[352989752,1739476249570,-500.0,0.00014273,2]
[352989754,1739476249581,-649.4,0.00014273,2]
[352989756,1739476249592,-899.04,0.00014273,2]
[352989758,1739476249603,-6893.12,0.00014273,2]
[352989760,1739476249613,-2890.67,0.00014273,2]
[352989762,1739476249625,-500.0,0.00014273,2]
[352989764,1739476249637,-2073.17,0.00014273,2]
[352989766,1739476249649,-572.24,0.00014273,2]
[352989768,1739476249660,-552.36,0.00014273,2]
[352989770,1739476249671,-639.73,0.00014273,2]
[352989772,1739476249683,-1239.63,0.00014273,2]
[352989774,1739476249693,-577.54,0.00014273,2]
[352989776,1739476249705,-873.79,0.00014273,2]
[352989777,1739476249716,-830.83,0.00014273,2]
[352989778,1739476249727,-807.61,0.00014273,2]
[352989779,1739476249737,-500.0,0.00014273,2]
[352989780,1739476249747,-20060.39,0.00014273,2]
[352989781,1739476249758,-500.0,0.00014273,2]
[352989782,1739476249768,-769.31,0.00014273,2]
[352989783,1739476249778,-9930.67,0.00014273,2]
[352989784,1739476249788,-503.74,0.00014273,2]
[352989786,1739476249799,-1102.91,0.00014273,2]
[352989788,1739476249817,-500.0,0.00014273,2]
[352989790,1739476249827,-1206.97,0.00014273,2]
[352989792,1739476249837,-500.0,0.00014273,2]
[352989794,1739476249847,-696.9,0.00014273,2]
[352989796,1739476249858,-500.0,0.00014273,2]
[352989798,1739476249867,-950.98,0.00014273,2]
[352989800,1739476249877,-587.48,0.00014273,2]
[352989802,1739476249891,-285.05051515,0.00014273,2]
[352989804,1739476249902,-500.0,0.00014273,2]
[352989806,1739476249911,-1568.22,0.00014273,2]
[352989808,1739476249923,-500.0,0.00014273,2]
[352989810,1739476249933,-500.0,0.00014273,2]
[352989812,1739476249943,-500.0,0.00014273,2]
[352989814,1739476249952,-1924.85,0.00014273,2]
[352989816,1739476249964,-585.52,0.00014273,2]
[352989818,1739476249973,-915.79,0.00014273,2]
[352989820,1739476249983,-500.0,0.00014273,2]
[352989822,1739476249992,-500.0,0.00014273,2]
[352989824,1739476250003,-800.2,0.00014273,2]
[352989826,1739476250012,-4113.12,0.00014273,2]
[352989828,1739476250022,-802.43,0.00014273,2]
[352989830,1739476250031,-500.0,0.00014273,2]
[352989832,1739476250041,-320.32836961,0.00014273,2]
[352989834,1739476250051,-673.09,0.00014273,2]
[352989836,1739476250063,-500.0,0.00014273,2]
[352989838,1739476250073,-500.0,0.00014273,2]
[352989840,1739476250083,-500.0,0.00014273,2]
[352989842,1739476250092,-1518.39,0.00014273,2]
[352989844,1739476250102,-1928.05,0.00014273,2]
[352989846,1739476250112,-500.0,0.00014273,2]
[352989848,1739476250121,-1787.65,0.00014273,2]
[352989850,1739476250131,-500.0,0.00014273,2]
[352989852,1739476250140,-500.0,0.00014273,2]
[352989854,1739476250149,-641.97,0.00014273,2]
[352989856,1739476250159,-3031.55,0.00014273,2]
[352989858,1739476250169,-1659.36,0.00014273,2]
[352989860,1739476250178,-151.0,0.000143,2]
[352989863,1739476250188,-151.0,0.000143,2]
[352989865,1739476250198,-2780.63876913,0.00014338,2]
[352989867,1739476250207,-1486.0382364,0.00014354,2]
[352989869,1739476250217,-500.0,0.00014356,2]
[352989872,1739476250226,-500.0,0.00014356,2]
[352989874,1739476250247,-500.0,0.00014356,2]
[352989876,1739476250257,-500.0,0.00014356,2]
[352989878,1739476250268,-479.15964949,0.00014356,2]
[352989880,1739476250278,-513.62,0.00014356,2]
[352989882,1739476250288,-500.0,0.00014356,2]
[352989885,1739476250298,-500.0,0.00014356,2]
[352989887,1739476250311,-531.63,0.00014356,2]
[352989889,1739476250321,-541.97,0.00014356,2]
[352989891,1739476250331,-500.0,0.00014356,2]
[352989893,1739476250341,-574.38,0.00014356,2]
[352989895,1739476250351,-669.43,0.00014356,2]
[352989897,1739476250360,-500.0,0.00014356,2]
[352989899,1739476250370,-870.15,0.00014356,2]
[352989901,1739476250380,-869.6,0.00014356,2]
[352989903,1739476250390,-500.0,0.00014356,2]
[352989905,1739476250401,-518.61,0.00014356,2]
[352989907,1739476250412,-188.2485018,0.00014356,2]
[352989909,1739476250422,-500.0,0.00014356,2]
[352989911,1739476250432,-756.32,0.00014356,2]
[352989914,1739476250442,-948.23,0.00014356,2]
[352989916,1739476250452,-500.0,0.00014356,2]
[352989918,1739476250462,-1600.1,0.00014356,2]
[352989920,1739476250472,-500.0,0.00014356,2]
[352989922,1739476250482,-172.286912,0.00014356,2]
[352989924,1739476250491,-649.4,0.00014356,2]
[352989926,1739476250502,-172.286912,0.00014356,2]
[352989928,1739476250512,-151.0,0.00014356,2]
[352989931,1739476250528,-899.04,0.00014356,2]
[352989934,1739476250546,-6893.12,0.00014356,2]
[352989936,1739476250564,-2890.67,0.00014356,2]
[352989939,1739476250578,-500.0,0.00014356,2]
[352989941,1739476250592,-2073.17,0.00014356,2]
[352989943,1739476250603,-572.24,0.00014356,2]
[352989946,1739476250619,-171.211032,0.00014356,2]
[352989948,1739476250631,-552.36,0.00014356,2]
[352989951,1739476250645,-639.73,0.00014356,2]
[352989953,1739476250658,-1239.63,0.00014356,2]
[352989956,1739476250671,-577.54,0.00014356,2]
[352989958,1739476250685,-873.79,0.00014356,2]
[352989961,1739476250699,-830.83,0.00014356,2]
[352989963,1739476250713,-807.61,0.00014356,2]
[352989966,1739476250725,-500.0,0.00014356,2]
[352989968,1739476250738,-20060.39,0.00014356,2]
[352989970,1739476250751,-151.0,0.00014356,2]
[352989973,1739476250766,-500.0,0.00014356,2]
[352989975,1739476250780,-769.31,0.00014356,2]
[352989978,1739476250794,-9930.67,0.00014356,2]
[352989980,1739476250807,-503.74,0.00014356,2]
[352989982,1739476250820,-1102.91,0.00014356,2]
[352989984,1739476250831,-500.0,0.00014356,2]
[352989987,1739476250842,-1206.97,0.00014356,2]
[352989989,1739476250856,-500.0,0.00014356,2]
[352989991,1739476250869,-696.9,0.00014356,2]
[352989994,1739476250884,-500.0,0.00014356,2]
[352989996,1739476250897,-950.98,0.00014356,2]
[352989998,1739476250911,-587.48,0.00014356,2]
[352990001,1739476250923,-243.35457183,0.00014356,2]
[352990003,1739476250939,-1568.22,0.00014356,2]
[352990006,1739476250954,-500.0,0.00014356,2]
[352990008,1739476250969,-500.0,0.00014356,2]
[352990011,1739476250984,-500.0,0.00014356,2]
[352990013,1739476250995,-1924.85,0.00014356,2]
[352990015,1739476251005,-585.52,0.00014356,2]
[352990017,1739476251015,-915.79,0.00014356,2]
[352990019,1739476251028,-500.0,0.00014356,2]
[352990021,1739476251042,-151.0,0.00014356,2]
[352990024,1739476251060,-500.0,0.00014356,2]
[352990026,1739476251072,-800.2,0.00014356,2]
[352990028,1739476251083,-4113.12,0.00014356,2]
[352990031,1739476251095,-151.0,0.00014356,2]
[352990033,1739476251107,-802.43,0.00014356,2]
[352990035,1739476251120,-500.0,0.00014356,2]
[352990037,1739476251134,-673.09,0.00014356,2]
[352990040,1739476251145,-500.0,0.00014356,2]
[352990042,1739476251159,-500.0,0.00014356,2]
[352990044,1739476251170,-500.0,0.00014356,2]
[352990046,1739476251182,-1518.39,0.00014356,2]
[352990048,1739476251196,-263.427288,0.00014356,2]
[352990051,1739476251208,-1928.05,0.00014356,2]
[352990053,1739476251221,-263.427288,0.00014356,2]
[352990055,1739476251234,-500.0,0.00014356,2]
[352990057,1739476251246,-151.0,0.00014356,2]
[352990059,1739476251259,-1787.65,0.00014356,2]
[352990062,1739476251273,-500.0,0.00014356,2]
[352990064,1739476251288,-151.0,0.00014356,2]
[352990067,1739476251299,-500.0,0.00014356,2]
[352990069,1739476251314,-641.97,0.00014356,2]
[352990071,1739476251326,-3031.55,0.00014356,2]
[352990074,1739476251339,-1659.36,0.00014356,2]
[352990076,1739476251352,-1100.0,0.00014363,2]
[352990078,1739476251363,-150.23,0.00014383,2]
[352990080,1739476251374,-500.0,0.00014383,2]
[352990082,1739476251387,-300.14,0.00014383,2]
[352990085,1739476251399,-150.23,0.00014383,2]
[352990087,1739476251410,-150.23,0.00014383,2]
[352990089,1739476251423,-300.14,0.00014383,2]
[352990091,1739476251436,-500.0,0.00014383,2]
[352990093,1739476251448,-500.0,0.00014383,2]
[352990096,1739476251459,-888.99244014,0.00014383,2]
[352990098,1739476251470,-150.23,0.00014383,2]
[352990100,1739476251481,-187.13630507,0.00014383,2]
[352990102,1739476251493,-867.0,0.00014383,2]
[352990105,1739476251504,-500.0,0.00014383,2]
[352990107,1739476251515,-150.23,0.00014383,2]
[352990109,1739476251527,-588.0,0.00014383,2]
[352990111,1739476251538,-559.0,0.00014383,2]
[352990113,1739476251550,-150.23,0.00014383,2]
[352990116,1739476251562,-500.0,0.00014383,2]
[352990118,1739476251573,-209.85647509,0.00014395,2]
[352990120,1739476251586,-151.0,0.000144,2]
[352990122,1739476251597,-1482.68655931,0.000144,2]
[352990124,1739476251608,-500.0,0.00014438,2]
[352990127,1739476251620,-500.0,0.00014438,2]
[352990129,1739476251632,-500.0,0.00014438,2]
[352990131,1739476251646,-500.0,0.00014438,2]
[352990134,1739476251658,-513.62,0.00014438,2]
[352990136,1739476251670,-500.0,0.00014438,2]
[352990138,1739476251683,-500.0,0.00014438,2]
[352990140,1739476251695,-151.0,0.00014438,2]
[352990142,1739476251706,-531.63,0.00014438,2]
[352990144,1739476251716,-541.97,0.00014438,2]
[352990146,1739476251726,-500.0,0.00014438,2]
[352990148,1739476251735,-574.38,0.00014438,2]
[352990150,1739476251747,-151.0,0.00014438,2]
[352990152,1739476251757,-151.0,0.00014438,2]
[352990154,1739476251767,-669.43,0.00014438,2]
[352990157,1739476251779,-500.0,0.00014438,2]
[352990158,1739476251788,-870.15,0.00014438,2]
[352990160,1739476251798,-869.6,0.00014438,2]
[352990163,1739476251810,-500.0,0.00014438,2]
[352990165,1739476251819,-518.61,0.00014438,2]
[352990167,1739476251828,-527.46008076,0.00014438,2]
[352990169,1739476251838,-756.32,0.00014438,2]
[352990171,1739476251848,-948.23,0.00014438,2]
[352990173,1739476251858,-353.12095345,0.00014438,2]
[352990175,1739476251867,-1600.1,0.00014438,2]
[352990177,1739476251877,-500.0,0.00014438,2]
[352990179,1739476251891,-649.4,0.00014438,2]
[352990181,1739476251903,-899.04,0.00014438,2]
[352990183,1739476251913,-6893.12,0.00014438,2]
[352990185,1739476251925,-2890.67,0.00014438,2]
[352990187,1739476251934,-500.0,0.00014438,2]
[352990188,1739476251943,-2073.17,0.00014438,2]
[352990191,1739476251953,-572.24,0.00014438,2]
[352990193,1739476251964,-552.36,0.00014438,2]
[352990194,1739476251973,-639.73,0.00014438,2]
[352990197,1739476251983,-1239.63,0.00014438,2]
[352990199,1739476251993,-577.54,0.00014438,2]
[352990201,1739476252003,-873.79,0.00014438,2]
[352990203,1739476252013,-830.83,0.00014438,2]
[352990205,1739476252023,-807.61,0.00014438,2]
[352990207,1739476252034,-500.0,0.00014438,2]
[352990209,1739476252043,-20060.39,0.00014438,2]
[352990211,1739476252054,-500.0,0.00014438,2]
[352990213,1739476252063,-769.31,0.00014438,2]
[352990215,1739476252072,-9930.67,0.00014438,2]
[352990239,1739476252292,-503.74,0.00014438,2]
[352990242,1739476252306,-1102.91,0.00014438,2]
[352990244,1739476252316,-500.0,0.00014438,2]
[352990246,1739476252325,-1206.97,0.00014438,2]
[352990248,1739476252339,-500.0,0.00014438,2]
[352990250,1739476252348,-696.9,0.00014438,2]
[352990252,1739476252357,-500.0,0.00014438,2]
[352990254,1739476252367,-950.98,0.00014438,2]
[352990256,1739476252376,-587.48,0.00014438,2]
[352990258,1739476252386,-1568.22,0.00014438,2]
[352990260,1739476252395,-500.0,0.00014438,2]
[352990263,1739476252406,-500.0,0.00014438,2]
[352990265,1739476252416,-500.0,0.00014438,2]
[352990267,1739476252425,-1924.85,0.00014438,2]
[352990269,1739476252435,-585.52,0.00014438,2]
[352990271,1739476252445,-500.0,0.00014438,2]
[352990273,1739476252454,-915.79,0.00014438,2]
[352990275,1739476252463,-500.0,0.00014438,2]
[352990277,1739476252472,-800.2,0.00014438,2]
[352990279,1739476252482,-4113.12,0.00014438,2]
[352990281,1739476252491,-802.43,0.00014438,2]
[352990283,1739476252500,-500.0,0.00014438,2]
[352990285,1739476252509,-673.09,0.00014438,2]
[352990287,1739476252518,-500.0,0.00014438,2]
[352990289,1739476252527,-500.0,0.00014438,2]
[352990291,1739476252536,-500.0,0.00014438,2]
[352990293,1739476252546,-1518.39,0.00014438,2]
[352990295,1739476252555,-1928.05,0.00014438,2]
[352990297,1739476252565,-500.0,0.00014438,2]
[352990299,1739476252574,-1787.65,0.00014438,2]
[352990301,1739476252584,-500.0,0.00014438,2]
[352990303,1739476252593,-500.0,0.00014438,2]
[352990305,1739476252603,-641.97,0.00014438,2]
[352990307,1739476252613,-3031.55,0.00014438,2]
[352990309,1739476252622,-1659.36,0.00014438,2]
[352990311,1739476252631,-500.0,0.00014473,2]
[352990313,1739476252640,-231.15233813,0.00014498,2]
[352990315,1739476252649,-69785.89728078,0.000145,5]
[352990321,1739476252696,-12468.00001102,0.000145,5]
[352990323,1739476252708,-644.95453371,0.000145,5]
[352990325,1739476252720,-15823.3464059,0.000145,5]
[352990327,1739476252729,-18856.03188917,0.000145,5]
[352990333,1739476252776,-500.0,0.00013698,2]
[352990335,1739476252785,-445.4,0.000145,5]
[352990337,1739476252796,-9500.0,0.000145,5]
[352990340,1739476252813,-1501.1363862,0.000145,5]
[352990892,1739477374123,-400.0,0.00010685,2]
[352990893,1739477374145,-731.48644,0.00010959,2]
[352990937,1739477432057,-68.14356,0.00010959,2]
[352990939,1739477432068,-5591.3479203,0.00012739,2]
[352990941,1739477432078,-171.3583317,0.00012993,2]
[352990985,1739477437847,-828.6416683,0.00012993,2]
[352990987,1739477437857,-300.0,0.00013696,2]
[352990989,1739477437867,-500.0,0.00013697,2]
[352990991,1739477437876,-500.0,0.00013697,2]
[352990993,1739477437885,-500.0,0.00013697,2]
[352990995,1739477437896,-260.45900962,0.00013697,2]
[352990997,1739477437905,-500.0,0.00013697,2]
[352990999,1739477437915,-403.31745523,0.00013697,2]
[352991001,1739477437925,-451.63976033,0.00013698,2]
[352991003,1739477437934,-500.0,0.00013698,2]
[352991005,1739477437943,-500.0,0.00013698,2]
[352991007,1739477437952,-500.0,0.00013698,2]
[352991009,1739477437962,-500.0,0.00013698,2]
[352991011,1739477437972,-500.0,0.00013698,2]
[352991012,1739477437981,-500.0,0.00013698,2]
[352991014,1739477437990,-500.0,0.00013698,2]
[352991016,1739477438000,-285.56613833,0.00013698,2]
[352991017,1739477438010,-500.0,0.00013698,2]
[352991018,1739477438019,-500.0,0.00013698,2]
[352991019,1739477438033,-500.0,0.00013698,2]
[352991020,1739477438042,-500.0,0.00013698,2]
[352991021,1739477438052,-500.0,0.00013698,2]
[352991022,1739477438062,-500.0,0.00013698,2]
[352991025,1739477438071,-500.0,0.00013698,2]
[352991027,1739477438082,-500.0,0.00013698,2]
[352991029,1739477438092,-500.0,0.00013698,2]
[352991032,1739477438102,-500.0,0.00013698,2]
[352991034,1739477438112,-500.0,0.00013698,2]
[352991037,1739477438122,-500.0,0.00013698,2]
[352991039,1739477438131,-205.05294211,0.00013698,2]
[352991041,1739477438141,-500.0,0.00013698,2]
[352991044,1739477438152,-500.0,0.00013698,2]
[352991046,1739477438162,-317.03770993,0.00013698,2]
[352991048,1739477438171,-500.0,0.00013698,2]
[352991050,1739477438181,-500.40028626,0.00013698,2]
[352991052,1739477438191,-500.0,0.00013698,2]
[352991054,1739477438201,-500.0,0.00013698,2]
[352991056,1739477438211,-500.0,0.00013698,2]
[352991058,1739477438220,-500.0,0.00013698,2]
[352991060,1739477438230,-500.0,0.00013698,2]
[352991062,1739477438240,-500.0,0.00013698,2]
[352991064,1739477438250,-500.0,0.00013698,2]
[352991066,1739477438263,-500.0,0.00013698,2]
[352991068,1739477438272,-500.0,0.00013698,2]
[352991070,1739477438282,-500.0,0.00013698,2]
[352991072,1739477438292,-500.0,0.00013698,2]
[352991074,1739477438303,-500.0,0.00013698,2]
[352991076,1739477438314,-500.0,0.00013698,2]
[352991078,1739477438324,-500.0,0.00013698,2]
[352991080,1739477438334,-500.0,0.00013698,2]
[352991082,1739477438343,-511.40182723,0.00013698,2]
[352991084,1739477438353,-500.0,0.00013698,2]
[352991086,1739477438363,-500.0,0.00013698,2]
[352991088,1739477438372,-500.0,0.00013698,2]
[352991090,1739477438381,-500.0,0.00013698,2]
[352991092,1739477438391,-500.0,0.00013698,2]
[352991094,1739477438400,-502.63851671,0.00013698,2]
[352991096,1739477438410,-200.59100865,0.00013698,2]
[352991098,1739477438419,-576.86667353,0.00013698,2]
[352991100,1739477438428,-500.0,0.00013698,2]
[352991102,1739477438438,-500.0,0.00013698,2]
[352991104,1739477438447,-500.0,0.00013698,2]
[352991106,1739477438457,-500.0,0.00013698,2]
[352991108,1739477438467,-500.0,0.00013698,2]
[352991110,1739477438476,-500.0,0.00013698,2]
[352991112,1739477438486,-507.80469073,0.00013698,2]
[352991115,1739477438504,-500.0,0.00013698,2]
[352991118,1739477438517,-500.0,0.00013698,2]